bitfinex/quotes_ETHUSD_20250428
["timestamp","ask_amount","ask_price","bid_price","bid_amount"]
[1745805862376,8.423,1772.1,1771.2,1.1814]
[1745805862587,0.55,1772.0,1771.2,1.1814]
[1745805863489,3.18536232,1771.7,1771.2,1.1814]
[1745805863691,3.55,1771.6,1771.2,1.1814]
[1745805864014,3.55,1771.6,1770.7,1.1659]
[1745805864015,0.55,1771.1,1770.7,1.1659]
[1745805864183,3.0,1770.9,1770.7,1.1659]
[1745805864515,3.0,1770.9,1770.4,3.79362614]
[1745805864516,3.0,1770.9,1770.5,1.1659]
[1745805864875,3.0,1770.9,1770.6,3.79362614]
[1745805865811,0.86426612,1770.8,1770.6,3.79362614]
[1745805866319,3.55,1770.7,1770.6,3.79362614]
[1745805866521,8.973,1770.7,1770.6,3.79362614]
[1745805866902,9.28726612,1770.7,1770.6,3.79362614]
[1745805868794,0.55,1770.6,1770.1,1.194]
[1745805869621,0.55,1770.4,1770.1,1.194]
[1745805870222,0.31426612,1770.5,1770.1,1.194]
[1745805870787,0.31426612,1770.8,1770.2,4.29506232]
[1745805870993,0.31426612,1770.8,1770.4,1.1097]
[1745805871723,0.31426612,1771.1,1770.4,1.1097]
[1745805872020,0.55,1771.0,1770.4,1.1097]
[1745805872427,3.55,1771.0,1770.4,1.1097]
[1745805872818,0.31426612,1770.9,1770.4,1.1097]
[1745805875309,0.31426612,1771.0,1770.4,1.1097]
[1745805875504,0.26426612,1771.0,1770.4,1.1097]
[1745805877602,0.26426612,1771.0,1770.4,1.76287]
[1745805880847,0.26426612,1771.0,1770.5,1.1664]
[1745805881137,0.26426612,1771.0,1770.7,1.1664]
[1745805881512,3.0,1771.6,1770.7,1.1664]
[1745805882905,3.0,1771.6,1770.8,1.1023]
[1745805883946,0.55,1771.5,1770.8,1.1023]
[1745805884447,3.0,1771.4,1770.8,1.1023]
[1745805884604,3.0,1771.4,1770.5,1.1023]
[1745805884804,0.55,1771.2,1770.5,1.1023]
[1745805885051,6.61,1771.2,1770.5,1.1023]
[1745805886451,6.06,1771.2,1770.5,1.1023]
[1745805886611,6.06,1771.2,1770.7,1.2188]
[1745805887543,6.06,1771.2,1770.7,1.63319064]
[1745805888144,5.421,1771.3,1770.7,1.63319064]
[1745805888645,0.31350821,1771.2,1770.7,1.63319064]
[1745805889043,0.31350821,1771.2,1770.8,1.2209]
[1745805889415,3.0,1771.5,1770.8,1.2209]
[1745805890546,6.06,1771.8,1770.8,1.2209]
[1745805890750,5.421,1771.7,1770.9,1.121]
[1745805891674,3.0,1771.8,1771.0,3.18536232]
[1745805891825,6.06,1771.9,1771.2,1.0858]
[1745805892018,12.031,1772.0,1771.2,1.0858]
[1745805892225,3.0,1771.9,1771.2,1.0858]
[1745805892969,0.55,1771.8,1771.2,1.0858]
[1745805893171,0.55,1771.8,1771.0,1.0795]
[1745805893324,11.9014787,1772.0,1770.4,0.65317]
[1745805893325,0.55,1771.5,1770.8,1.0795]
[1745805893524,3.0,1771.4,1770.8,1.0795]
[1745805893825,0.55,1771.3,1770.8,1.0795]
[1745805894945,0.97692476,1771.3,1770.6,1.0645]
[1745805895119,0.97692476,1771.3,1770.5,3.79362614]
[1745805895821,0.55,1771.3,1770.5,4.88685575]
[1745805896053,0.55,1771.3,1770.5,1.09322961]
[1745805898833,0.55,1771.3,1770.4,6.4855]
[1745805899037,0.55,1771.0,1770.4,6.4855]
[1745805901224,0.55,1770.8,1770.0,5.422]
[1745805901422,3.31441592,1770.7,1770.1,1.0469]
[1745805901626,8.73641592,1770.7,1770.1,1.0469]
[1745805902040,0.31441592,1770.6,1770.1,1.69379]
[1745805902830,0.31441592,1770.5,1770.1,1.69379]
[1745805903632,0.31441592,1770.4,1770.1,1.69379]
[1745805904033,5.422,1771.1,1770.3,1.0469]
[1745805904265,5.422,1771.1,1770.5,1.0469]
[1745805905758,8.418,1771.2,1770.5,1.0469]
[1745805906890,3.0,1771.2,1770.5,1.0469]
[1745805907191,8.418,1771.2,1770.5,1.0469]
[1745805908768,3.0,1771.2,1770.5,1.0469]
[1745805908972,11.478,1771.3,1770.5,1.0469]
[1745805909708,6.61,1771.2,1770.4,3.18536232]
[1745805909858,6.06,1771.2,1770.6,1.0747]
[1745805910059,5.418,1771.4,1770.6,1.0747]
[1745805910504,3.0,1771.6,1770.6,1.0747]
[1745805910673,5.418,1771.5,1770.8,1.0747]
[1745805911195,5.418,1771.6,1770.8,1.0747]
[1745805911358,5.418,1771.7,1771.0,1.0519]
[1745805911563,5.418,1771.7,1771.2,1.0519]
[1745805911886,5.418,1771.7,1771.2,1.47562623]
[1745805912198,5.418,1771.7,1771.1,1.0519]
[1745805912400,5.417,1771.9,1771.2,1.0519]
[1745805912599,5.417,1771.9,1771.3,1.0519]
[1745805912963,5.417,1772.0,1771.3,1.0519]
[1745805914173,5.417,1772.0,1771.4,1.0519]
[1745805915081,5.417,1772.0,1771.5,1.1402]
[1745805915269,3.0,1772.2,1771.5,1.1402]
[1745805915465,8.417,1772.2,1771.5,1.1402]
[1745805916375,0.31390989,1772.1,1771.5,1.1402]
[1745805919323,0.55,1771.8,1771.3,1.0408]
[1745805919609,3.0,1771.7,1771.3,1.0408]
[1745805920012,0.31390989,1771.6,1771.3,1.0408]
[1745805921623,6.06,1771.7,1771.3,3.18536232]
[1745805921778,6.06,1771.7,1771.4,1.35853623]
[1745805922314,6.06,1771.7,1771.4,1.04]
[1745805923201,0.55,1772.0,1771.4,1.04]
[1745805923402,6.61,1772.0,1771.4,1.04]
[1745805923835,0.31382025,1771.9,1771.4,1.04]
[1745805925553,0.31382025,1771.9,1771.7,3.18536232]
[1745805925707,0.31382025,1771.9,1771.8,1.42143623]
[1745805925908,0.31382025,1772.4,1771.8,1.42143623]
[1745805926142,0.31382025,1772.4,1771.9,1.034]
[1745805927623,0.31382025,1772.5,1771.9,1.034]
[1745805927818,0.31382025,1772.5,1771.9,3.18536232]
[1745805928029,0.31382025,1772.5,1772.0,0.31853623]
[1745805928234,0.31382025,1772.5,1772.1,1.084]
[1745805928436,0.31382025,1772.7,1772.1,1.084]
[1745805931769,0.31382025,1772.7,1772.3,1.09]
[1745805932759,0.31382025,1772.7,1772.4,0.28663501]
[1745805933269,0.31382025,1772.8,1772.4,0.28663501]
[1745805933869,0.31382025,1772.8,1772.5,1.0153]
[1745805934040,0.31382025,1772.8,1772.6,0.28620145]
[1745805934244,0.005,1773.0,1772.6,0.28620145]
[1745805935383,0.555,1773.0,1772.6,0.28620145]
[1745805935875,0.555,1773.0,1772.7,1.0268]
[1745805935876,0.005,1773.0,1772.7,1.0268]
[1745805936096,0.005,1773.0,1772.8,0.28353887]
[1745805936290,0.005,1773.0,1772.9,4.21216232]
[1745805936584,0.31382025,1773.2,1773.0,1.0822]
[1745805937186,0.31382025,1773.7,1773.2,1.0648]
[1745805937873,0.31382025,1773.7,1773.3,0.28353887]
[1745805938383,0.31382025,1773.7,1773.4,4.19546232]
[1745805938596,0.31382025,1773.7,1773.4,1.0101]
[1745805938763,0.31382025,1774.1,1773.4,1.28980208]
[1745805939274,2.13577865,1774.2,1773.5,1.0101]
[1745805939781,2.13577865,1774.2,1773.6,0.27970208]
[1745805940348,2.13577865,1774.2,1773.7,1.0101]
[1745805940551,0.55,1774.1,1773.7,1.0101]
[1745805940856,0.55,1774.1,1773.8,0.27970208]
[1745805941056,0.55,1774.1,1773.3,1.0739]
[1745805941057,6.73536232,1774.1,1773.3,1.0739]
[1745805941273,3.0,1774.0,1773.3,1.0739]
[1745805941480,3.0,1774.0,1773.4,0.27778469]
[1745805942075,3.55,1774.1,1773.4,0.27778469]
[1745805944255,0.55,1773.9,1773.4,0.27778469]
[1745805944458,0.55,1773.7,1773.4,0.27778469]
[1745805951422,0.86367942,1773.7,1773.4,0.27778469]
[1745805953610,0.86367942,1773.7,1773.3,1.0739]
[1745805955328,0.31367942,1773.6,1773.3,1.0739]
[1745805955620,0.31367942,1773.6,1773.4,0.25040938]
[1745805956009,0.31367942,1773.5,1773.4,0.25040938]
[1745805962169,1.50740208,1773.5,1773.4,0.25040938]
[1745805962640,0.55,1773.4,1772.8,0.9169]
[1745805962838,4.19372266,1773.2,1772.8,0.9169]
[1745805963068,4.19372266,1773.2,1772.9,0.23055789]
[1745805963263,0.31367942,1773.1,1772.9,0.23055789]
[1745805963465,0.31367942,1773.1,1772.8,0.9169]
[1745805963952,0.31367942,1773.1,1772.9,0.23055789]
[1745805964270,0.31367942,1773.0,1772.9,0.23055789]
[1745805964564,0.31367942,1773.0,1772.9,1.16870156]
[1745805964754,0.31367942,1773.0,1772.9,0.935]
[1745805965073,0.31367942,1773.4,1772.9,1.16870156]
[1745805966274,0.31367942,1773.3,1772.9,1.16870156]
[1745805967040,0.31367942,1773.2,1772.9,1.16870156]
[1745805967936,0.55,1773.6,1772.9,1.16870156]
[1745805967937,0.31367942,1773.1,1772.9,1.16870156]
[1745805969186,0.005,1773.9,1773.0,0.9274]
[1745805969385,5.401,1773.8,1773.0,0.9274]
[1745805969592,0.005,1773.9,1773.1,0.23135904]
[1745805969764,0.005,1773.9,1773.2,6.3284]
[1745805969968,0.31650894,1773.8,1773.3,1.58974]
[1745805970169,0.31650894,1773.8,1773.3,1.82109904]
[1745805970689,0.31650894,1773.7,1773.3,1.82109904]
[1745805971573,0.31650894,1773.6,1773.3,1.82109904]
[1745805972691,0.31650894,1773.6,1773.4,0.9272]
[1745805972886,0.31650894,1773.5,1773.4,0.9272]
[1745805974970,0.31650894,1773.5,1772.9,0.9272]
[1745805975172,3.31650894,1773.5,1772.9,1.56002]
[1745805975389,3.31650894,1773.5,1772.9,0.9272]
[1745805975698,0.31650894,1773.4,1772.9,0.9272]
[1745805976304,0.31650894,1773.3,1772.9,0.9272]
[1745805976509,0.31650894,1773.3,1772.9,1.93938261]
[1745805977286,0.31650894,1773.3,1773.0,0.21051879]
[1745805977487,0.31650894,1773.2,1773.0,0.21051879]
[1745805978316,0.31650894,1773.1,1773.0,0.21051879]
[1745805978727,3.31650894,1773.1,1772.5,0.9686]
[1745805978919,8.71750894,1773.1,1772.6,0.21076491]
[1745805979090,0.31650894,1773.0,1772.6,0.21076491]
[1745805979922,0.31650894,1772.9,1772.6,0.21076491]
[1745805980691,0.31650894,1772.8,1772.6,0.21076491]
[1745805981890,0.31650894,1772.7,1772.6,0.21076491]
[1745805983192,0.31650894,1773.0,1772.6,0.21076491]
[1745805983824,0.31650894,1773.0,1772.7,0.9218]
[1745805984117,0.31650894,1773.3,1772.8,0.21174948]
[1745805984323,0.31650894,1773.3,1772.9,0.9074]
[1745805984920,0.31650894,1773.2,1773.1,0.9501]
[1745805985122,0.31650894,1773.2,1773.1,1.16228028]
[1745805985423,0.31650894,1773.2,1773.1,0.63269034]
[1745805985589,5.402,1774.0,1773.2,0.9735]
[1745805985788,5.402,1774.0,1773.4,0.9159]
[1745805986388,5.402,1774.0,1773.5,0.21402488]
[1745805986896,5.402,1774.0,1773.6,0.9771]
[1745805987223,5.402,1774.4,1773.7,0.21181027]
[1745805987435,3.0,1774.3,1773.7,0.21181027]
[1745805987605,3.18002152,1774.3,1773.7,0.21181027]
[1745805987920,3.18002152,1774.3,1773.4,0.9104]
[1745805987921,0.55,1774.2,1773.4,0.9104]
[1745805988127,0.55,1774.2,1773.5,0.21181027]
[1745805990200,3.0,1774.3,1773.5,0.21181027]
[1745805990726,16.947,1774.5,1773.6,0.9624]
[1745805990895,5.401,1774.4,1773.6,0.9624]
[1745805991096,3.0,1774.3,1773.7,0.21051884]
[1745805991355,5.401,1774.7,1773.8,0.9624]
[1745805991551,5.401,1774.7,1773.9,0.21045735]
[1745805992263,5.401,1774.8,1774.0,0.9624]
[1745805992565,5.401,1774.8,1774.1,0.20885887]
[1745805992754,5.401,1774.8,1774.2,0.914]
[1745805993125,5.401,1774.8,1774.3,0.20881181]
[1745805996453,3.18002152,1774.6,1774.3,0.20881181]
[1745805996968,3.0,1774.5,1774.4,0.18519521]
[1745805997335,3.0,1774.5,1773.9,0.9655]
[1745805997646,9.06,1774.5,1774.0,0.18519521]
[1745805997848,3.0,1774.3,1774.0,0.18519521]
[1745805998151,9.06,1774.3,1773.7,6.3665]
[1745805998360,9.06,1774.3,1773.8,0.18556393]
[1745805998747,0.31453749,1774.2,1773.8,0.18556393]
[1745806000189,0.31453749,1774.2,1773.9,0.9801]
[1745806000555,0.31453749,1774.2,1774.0,0.1866088]
[1745806000950,0.31453749,1774.2,1773.9,0.9801]
[1745806001150,0.31453749,1774.2,1774.0,0.1866088]
[1745806001386,0.31453749,1774.2,1773.9,0.9801]
[1745806001900,0.31453749,1774.2,1774.0,0.1866088]
[1745806002267,0.31453749,1774.2,1773.9,0.9801]
[1745806002794,0.31453749,1774.2,1774.0,0.1866088]
[1745806002969,3.0,1774.3,1774.0,0.1866088]
[1745806003172,3.0,1774.3,1773.9,0.9801]
[1745806003374,3.0,1774.4,1773.9,0.9801]
[1745806003568,3.0,1774.4,1774.0,0.1866088]
[1745806004013,0.31437089,1774.3,1774.0,0.1866088]
[1745806004171,0.31437089,1774.3,1773.9,0.9801]
[1745806004373,0.31437089,1774.3,1773.5,0.97]
[1745806004374,3.0,1774.1,1773.5,0.97]
[1745806004705,14.454,1774.1,1774.0,0.1866703]
[1745806004873,14.454,1774.1,1773.5,0.97]
[1745806005291,14.454,1774.1,1773.6,0.18691618]
[1745806006101,0.31448609,1774.0,1773.6,0.18691618]
[1745806009593,3.0,1773.9,1773.6,0.18691618]
[1745806010023,3.0,1773.9,1773.3,0.9212]
[1745806010241,3.0,1773.9,1773.7,0.17484132]
[1745806010428,0.31448609,1773.8,1773.3,0.9212]
[1745806011612,0.31448609,1773.7,1773.3,0.9212]
[1745806012629,3.31448609,1773.7,1773.3,0.9212]
[1745806013540,0.31448609,1773.6,1773.3,0.9212]
[1745806014315,0.31448609,1773.5,1773.3,0.9212]
[1745806015546,0.31448609,1773.4,1773.3,0.9212]
[1745806016646,0.31448609,1773.6,1773.3,0.9212]
[1745806016946,6.37448609,1773.6,1773.3,0.9212]
[1745806017674,0.31448609,1773.5,1773.3,0.9212]
[1745806018350,0.31448609,1773.4,1773.3,0.9212]
[1745806018865,0.95814684,1773.4,1772.8,6.1771]
[1745806019060,0.64366075,1773.2,1772.8,6.1771]
[1745806019357,0.64366075,1773.2,1772.8,6.79481]
[1745806019557,3.31448609,1773.3,1772.8,6.79481]
[1745806019765,3.31448609,1773.3,1772.8,6.1771]
[1745806020065,0.31448609,1773.2,1772.8,6.1771]
[1745806020963,0.31448609,1773.1,1772.8,6.1771]
[1745806021828,0.31448609,1773.2,1772.8,6.1771]
[1745806022245,0.31448609,1773.2,1772.9,0.16320772]
[1745806022824,0.31448609,1773.2,1772.8,0.7821]
[1745806023060,0.31448609,1773.2,1773.0,0.16320772]
[1745806023253,0.31448609,1773.2,1772.8,0.7821]
[1745806023455,0.31448609,1773.2,1773.1,0.16320772]
[1745806024067,0.31448609,1773.2,1772.8,0.7821]
[1745806024262,0.31448609,1773.2,1773.1,0.16320772]
[1745806024437,0.31448609,1773.2,1772.8,0.7821]
[1745806024643,0.31448609,1773.2,1773.1,0.98060772]
[1745806024842,0.31448609,1773.2,1773.1,0.8174]
[1745806025165,0.31448609,1773.8,1773.1,0.98060772]
[1745806025556,3.31448609,1773.8,1773.1,0.98060772]
[1745806025757,0.31448609,1773.8,1773.1,0.98060772]
[1745806025959,3.31448609,1773.8,1773.1,0.98060772]
[1745806026142,0.31448609,1773.8,1773.1,0.98060772]
[1745806026342,0.31448609,1773.7,1773.1,0.98060772]
[1745806027486,0.31448609,1773.6,1773.1,0.98060772]
[1745806028139,0.31448609,1773.7,1773.1,0.98060772]
[1745806028337,0.31448609,1773.7,1773.5,0.7622]
[1745806028779,0.31448609,1773.7,1773.6,0.16320772]
[1745806028979,0.31448609,1774.2,1773.6,0.16320772]
[1745806029181,6.06,1774.1,1773.6,0.16320772]
[1745806029486,3.0,1774.0,1773.6,0.16320772]
[1745806029837,0.31448609,1773.9,1773.6,0.16320772]
[1745806030641,3.31448609,1773.8,1773.6,0.16320772]
[1745806030888,9.06,1773.7,1773.6,0.16320772]
[1745806031044,3.0,1773.6,1773.2,5.39]
[1745806031671,0.31448609,1773.5,1773.2,5.39]
[1745806031873,0.31448609,1773.5,1773.2,6.00422]
[1745806032282,0.31448609,1773.4,1773.2,6.00422]
[1745806033282,0.31448609,1773.5,1773.2,6.00422]
[1745806034343,0.31448609,1773.4,1773.2,6.00422]
[1745806034682,0.31448609,1773.4,1773.3,0.8128]
[1745806034984,0.31448609,1773.6,1773.3,1.494502]
[1745806035971,6.06,1773.7,1773.3,1.494502]
[1745806035972,0.31448609,1773.5,1773.3,1.494502]
[1745806037247,0.31448609,1773.4,1773.3,1.494502]
[1745806037457,0.31448609,1773.4,1773.3,0.681702]
[1745806037688,0.31448609,1773.4,1773.3,4.69051023]
[1745806037889,0.31448609,1773.4,1773.3,0.8317]
[1745806038048,3.17710823,1774.1,1773.3,0.8317]
[1745806038247,3.0,1773.9,1773.3,0.8317]
[1745806038452,11.56710823,1773.9,1773.0,0.8317]
[1745806038874,8.39,1773.9,1773.0,0.8317]
[1745806039191,0.31448609,1773.8,1773.0,0.8317]
[1745806040267,0.31448609,1773.7,1773.0,0.8317]
[1745806041002,0.31448609,1773.7,1773.0,1.45387]
[1745806041154,11.56710823,1773.9,1773.0,1.45387]
[1745806041155,0.31448609,1773.6,1773.0,1.45387]
[1745806042090,0.31448609,1773.5,1773.0,1.45387]
[1745806042883,0.31448609,1773.4,1773.0,1.45387]
[1745806043490,0.31448609,1773.3,1773.0,1.45387]
[1745806044164,0.31448609,1773.2,1773.0,1.45387]
[1745806045162,0.31448609,1773.6,1773.0,1.45387]
[1745806045992,0.31448609,1773.5,1773.0,1.45387]
[1745806046989,0.31448609,1773.4,1773.1,0.7947]
[1745806047497,0.31448609,1773.4,1773.1,1.43841456]
[1745806047703,0.31448609,1773.6,1773.2,0.7947]
[1745806048456,0.31448609,1773.5,1773.2,0.7947]
[1745806049058,0.31448609,1773.4,1773.2,0.7947]
[1745806049978,0.31448609,1773.7,1773.2,0.7947]
[1745806050293,0.31448609,1773.7,1773.6,0.7827]
[1745806050658,0.31448609,1774.2,1773.6,0.7827]
[1745806051435,0.31448609,1774.1,1773.8,0.7511]
[1745806052070,0.31448609,1774.1,1774.0,0.7511]
[1745806052485,0.31448609,1774.4,1774.0,0.7511]
[1745806052672,0.31448609,1774.4,1774.0,0.88575369]
[1745806052873,0.31448609,1774.4,1774.1,0.7511]
[1745806053274,0.31448609,1774.4,1774.3,0.7511]
[1745806053796,3.0,1774.9,1774.3,0.88440678]
[1745806054003,11.45,1775.0,1774.3,0.7511]
[1745806054298,3.0,1774.9,1774.3,0.7511]
[1745806054502,5.389,1775.0,1774.4,0.8108]
[1745806054891,5.389,1775.0,1774.5,0.12595902]
[1745806055093,0.64371456,1774.8,1774.5,0.12595902]
[1745806055315,3.0,1774.9,1774.5,0.12595902]
[1745806056735,3.0,1774.9,1774.2,6.1415]
[1745806057042,3.64371456,1774.9,1774.2,6.75565]
[1745806057341,0.64371456,1774.7,1774.3,0.12516346]
[1745806057640,0.64371456,1774.5,1774.3,0.15762483]
[1745806057941,6.70371456,1774.5,1774.3,0.15762483]
[1745806058096,6.70371456,1774.5,1774.0,0.8023]
[1745806058296,6.06,1774.5,1774.0,0.8023]
[1745806058605,6.06,1774.5,1774.1,0.15762483]
[1745806059234,0.64371456,1774.4,1774.1,0.15762483]
[1745806059593,3.0,1774.5,1774.1,0.15762483]
[1745806060823,0.64371456,1774.4,1774.1,0.15762483]
[1745806061235,0.64371456,1774.4,1773.8,6.2042]
[1745806061409,9.06,1774.3,1774.2,0.15762483]
[1745806061611,9.06,1774.3,1773.8,6.2042]
[1745806061813,9.06,1774.3,1773.9,0.15762483]
[1745806062041,9.06,1774.3,1774.0,0.7941]
[1745806062223,9.06,1774.3,1774.0,0.95172483]
[1745806062600,6.06,1774.3,1774.0,0.95172483]
[1745806062808,6.06,1774.3,1774.0,0.7941]
[1745806063001,3.0,1774.2,1773.8,6.1606]
[1745806063323,3.0,1774.2,1773.9,0.15762483]
[1745806063712,3.0,1774.2,1773.8,0.7776]
[1745806063908,3.0,1774.2,1774.0,0.15762483]
[1745806064152,3.0,1774.2,1773.6,0.7776]
[1745806064314,3.0,1774.2,1774.1,0.15762483]
[1745806064513,3.0,1774.2,1773.6,0.7776]
[1745806064733,3.0,1774.2,1774.1,0.15762483]
[1745806064920,3.0,1774.2,1773.6,0.7776]
[1745806065439,3.0,1774.2,1773.7,0.15762483]
[1745806066480,0.31522458,1774.1,1773.7,0.15762483]
[1745806066642,0.64371456,1774.0,1773.7,0.15762483]
[1745806066811,6.70371456,1774.0,1773.7,0.15762483]
[1745806067342,0.31522458,1773.9,1773.7,0.15762483]
[1745806067742,0.31522458,1773.9,1773.4,0.7907]
[1745806067945,0.31522458,1773.9,1773.8,0.15762483]
[1745806068150,0.31522458,1773.9,1773.4,0.7907]
[1745806068647,0.31522458,1773.9,1773.5,0.15762483]
[1745806069238,6.70371456,1773.8,1773.5,0.15762483]
[1745806070154,0.31522458,1773.7,1773.5,0.15762483]
[1745806072220,6.06,1773.8,1773.5,0.15762483]
[1745806072754,6.06,1774.0,1773.5,0.15762483]
[1745806072931,6.06,1774.0,1773.5,0.11022163]
[1745806073122,0.31548052,1773.9,1773.5,0.11022163]
[1745806074648,0.31548052,1773.9,1773.6,0.7745]
[1745806075050,0.31548052,1773.9,1773.7,0.11474807]
[1745806075523,0.31548052,1773.9,1773.5,0.7745]
[1745806075949,0.31548052,1773.9,1773.6,0.11474807]
[1745806076159,0.31548052,1773.8,1773.6,0.11474807]
[1745806077163,0.31548052,1773.9,1773.6,0.11474807]
[1745806077761,0.31548052,1773.8,1773.6,0.11474807]
[1745806078738,0.31548052,1773.9,1773.6,0.11474807]
[1745806079267,0.31548052,1773.9,1773.8,1.47601456]
[1745806079676,0.31548052,1773.9,1773.8,1.5910686]
[1745806079829,0.31548052,1773.9,1773.8,0.94735404]
[1745806080024,0.31548052,1774.4,1773.8,0.7587686]
[1745806080266,0.31548052,1774.4,1773.9,0.7632]
[1745806080631,0.31548052,1774.4,1774.0,0.11346315]
[1745806081068,0.31548052,1774.3,1774.0,0.11346315]
[1745806081941,0.31548052,1774.2,1774.0,0.11346315]
[1745806082764,0.31548052,1774.1,1774.0,0.11346315]
[1745806082962,6.37548052,1774.1,1774.0,0.11346315]
[1745806083164,9.37548052,1774.1,1774.0,0.11346315]
[1745806083372,9.37548052,1774.1,1773.5,0.8162]
[1745806083559,0.95919508,1774.0,1773.5,0.8162]
[1745806083731,3.0,1773.9,1773.5,0.8162]
[1745806084764,0.64371456,1773.6,1773.3,4.56262614]
[1745806084966,7.01919508,1773.8,1773.3,4.56262614]
[1745806085267,6.37548052,1773.8,1773.3,5.55728875]
[1745806085658,6.37548052,1773.8,1773.3,1.76366261]
[1745806085968,0.31548052,1773.7,1773.3,1.76366261]
[1745806087259,0.31548052,1773.6,1773.3,1.76366261]
[1745806088068,0.31548052,1773.5,1773.3,1.76366261]
[1745806088995,0.31548052,1773.5,1773.3,0.99466261]
[1745806089182,0.31548052,1773.5,1773.4,1.41271456]
[1745806089335,5.379,1774.5,1773.6,0.64371456]
[1745806089535,5.379,1774.5,1773.7,0.769]
[1745806090071,3.0,1774.4,1773.7,0.769]
[1745806090261,5.379,1774.5,1773.7,0.769]
[1745806091272,5.379,1774.5,1773.7,1.19280991]
[1745806091862,5.379,1774.5,1773.7,0.42380991]
[1745806092065,5.379,1774.5,1773.8,0.7954]
[1745806092802,9.46,1774.6,1773.8,1.43911456]
[1745806093107,12.08271456,1775.0,1774.3,0.7954]
[1745806093311,3.0,1774.9,1774.3,0.7954]
[1745806093979,0.64371456,1774.8,1774.3,0.7954]
[1745806094296,0.64371456,1774.6,1774.3,0.7954]
[1745806094505,0.64371456,1774.6,1773.2,6.07]
[1745806094506,0.64371456,1774.6,1774.1,0.7885]
[1745806094689,0.64371456,1774.4,1774.1,0.7885]
[1745806094889,0.64371456,1774.4,1773.9,0.7885]
[1745806099204,3.0,1774.3,1773.9,0.7885]
[1745806100680,3.0,1774.3,1773.7,0.7794]
[1745806100681,0.64371456,1774.0,1773.7,0.7794]
[1745806101989,0.31601162,1773.9,1773.7,0.7794]
[1745806104409,6.37601162,1773.9,1773.4,5.378]
[1745806104600,6.37601162,1773.9,1773.5,0.7839]
[1745806104778,0.31601162,1773.8,1773.5,0.7839]
[1745806106302,0.31601162,1773.8,1773.5,1.40009]
[1745806106887,0.64371456,1773.7,1773.5,0.7839]
[1745806107083,0.95972618,1773.7,1773.5,0.7839]
[1745806107288,0.31601162,1773.7,1773.5,0.7839]
[1745806108001,0.31601162,1773.8,1773.5,0.7839]
[1745806112628,0.31601162,1773.8,1773.5,1.40009]
[1745806113702,6.06,1773.9,1773.5,1.40009]
[1745806115292,6.06,1773.9,1773.6,0.7729]
[1745806116129,3.0,1774.2,1773.6,0.7729]
[1745806116130,6.06,1774.2,1773.6,0.7729]
[1745806116311,0.31608418,1774.1,1773.6,0.7729]
[1745806118734,0.31608418,1774.1,1773.8,0.64371456]
[1745806118905,0.31608418,1774.5,1773.9,0.7622]
[1745806119241,0.31608418,1774.5,1774.0,0.7622]
[1745806119815,0.31608418,1774.5,1774.1,0.8081]
[1745806120534,0.31608418,1774.7,1774.1,0.8081]
[1745806120700,0.31608418,1774.7,1774.2,0.64371456]
[1745806120903,0.31608418,1774.7,1774.3,0.8223]
[1745806121741,0.31608418,1774.9,1774.3,0.8223]
[1745806122040,0.31608418,1774.9,1774.3,6.1953]
[1745806122246,0.95979874,1774.9,1774.4,0.61953]
[1745806122914,3.95979874,1774.9,1774.4,0.61953]
[1745806123538,0.31608418,1774.8,1774.5,0.8077]
[1745806127744,0.64871456,1775.2,1774.5,0.8077]
[1745806128342,3.64871456,1775.2,1774.5,0.8077]
[1745806128536,3.96479874,1775.2,1774.5,0.8077]
[1745806128740,0.64371456,1775.0,1774.5,0.8077]
[1745806129047,3.64371456,1775.0,1774.5,0.8077]
[1745806129240,0.31608418,1774.9,1774.5,0.8077]
[1745806130665,0.64371456,1774.8,1774.5,0.8077]
[1745806130849,0.64371456,1774.6,1774.5,0.8077]
[1745806131162,0.64371456,1774.6,1774.1,5.372]
[1745806131163,0.64371456,1774.6,1774.3,0.7608]
[1745806131368,0.64371456,1774.4,1774.1,6.1328]
[1745806131590,0.64371456,1774.6,1774.1,6.74608]
[1745806131869,0.95979874,1774.6,1774.1,6.74608]
[1745806132076,0.95979874,1774.6,1774.2,0.7806]
[1745806132445,0.31608418,1774.6,1774.2,0.7806]
[1745806132970,0.31608418,1774.7,1774.2,0.7806]
[1745806135157,6.06,1774.8,1774.2,0.7806]
[1745806135343,9.06,1774.9,1774.2,0.7806]
[1745806137643,0.64371456,1774.8,1774.2,0.7806]
[1745806137860,0.95890625,1774.8,1774.2,1.457188]
[1745806138052,0.64371456,1774.6,1774.2,0.7806]
[1745806139145,0.95890625,1774.8,1774.2,0.7806]
[1745806140671,0.64371456,1774.6,1774.2,0.7806]
[1745806141709,0.64371456,1774.4,1774.1,5.372]
[1745806141867,0.64371456,1774.2,1773.6,3.79362614]
[1745806142067,0.64371456,1773.8,1773.6,3.79362614]
[1745806142702,0.31519169,1773.8,1773.6,3.79362614]
[1745806143069,0.31519169,1773.8,1773.6,4.25413875]
[1745806143270,0.31519169,1773.9,1773.6,4.25413875]
[1745806143683,0.31519169,1773.9,1773.6,0.46051261]
[1745806143684,0.31583021,1773.9,1773.6,0.46051261]
[1745806144103,0.3158296,1773.9,1773.6,0.46051261]
[1745806144400,0.31568084,1773.9,1773.6,0.46051261]
[1745806144805,0.31568084,1773.9,1773.7,0.7602]
[1745806145098,3.64371456,1774.0,1773.7,0.7602]
[1745806145409,0.31568254,1773.9,1773.7,0.7602]
[1745806146697,0.31568254,1773.9,1773.5,0.8001]
[1745806149226,0.31568254,1773.9,1773.3,6.1765]
[1745806149227,3.0,1773.7,1773.3,6.1765]
[1745806149444,6.06,1773.8,1773.3,6.79415]
[1745806151006,6.06,1773.8,1773.4,0.8094]
[1745806154923,12.07171456,1774.1,1773.4,0.8094]
[1745806155446,0.31528613,1774.0,1773.4,0.8094]
[1745806155659,0.31528613,1774.0,1772.9,4.61962614]
[1745806155660,0.64371456,1773.6,1772.9,4.61962614]